Cogmind - Beta 11 @@@ ROGUE MODE // 2022.03.20 @ 11:13:45 Player: Holy_Ghost Result: Destroyed by Z-Imprinter with Zionite Laser-M Performance ------------- Evolutions (1) 500 Regions Visited (5) 1000 Robots Destroyed (8) 40 Value Destroyed (228) 228 Prototype IDs (4) 80 Alien Tech Used (0) 0 Bonus (-28) -28 TOTAL SCORE: 1820 Bonus ------- Friendly Fire -28 Cogmind --------- Core Integrity 0/400 Matter 290/300 Energy 55/100 System Corruption 0% Temperature Warning (388) Movement Core (200) Ox3 Location -7/Deep Caves Parts ------- > --- POWER (1) -------- (None) > --- PROPULSION (2) --- (None) > --- UTILITY (3) ------ Medium Storage Unit Hacking Drone Bay (1/1) > --- WEAPON (3) ------- (None) > --- INVENTORY (10) --- Light Ion Engine Aluminum Leg Shield Generator Hacking Suite Mobile Refinery Mk. CCLXVII Bomb Factory No. 2 Beam Rifle Light Cannon Peak State ------------ > --- POWER ------------ Improved Ion Engine > --- PROPULSION ------- Aluminum Leg Aluminum Leg > --- UTILITY ---------- Heat Sink Medium Storage Unit Shield Generator > --- WEAPON ----------- Beam Rifle Particle Cannon Particle Cannon > --- INVENTORY -------- Light Ion Engine Aluminum Leg Shield Generator Hacking Suite Mobile Refinery Mk. CCLXVII Hacking Drone Bay Bomb Factory No. 2 Light Cannon Improved Grenade Launcher [Rating: 17] Favorites ----------- Power Improved Ion Engine Engine Improved Ion Engine Propulsion Aluminum Leg Leg Aluminum Leg Utility Shield Generator Device Shield Generator Storage Medium Storage Unit Weapon Particle Cannon Energy Gun Beam Rifle Energy Cannon Particle Cannon Ballistic Gun Light Assault Rifle Ballistic Cannon Light Cannon Launcher Improved Grenade Launcher Build | -11 -10 -9 -9 -7 -7 ------- Run | Scr Mat Mat Min Zio Dee Slots Evolved 2 | . . 2 . . . Power . | . . . . . . Propulsion . | . . . . . . Utility 1 | . . 1 . . . Weapon 1 | . . 1 . . . Parts Attached 22 | 6 6 4 4 . 2 Power 2 | 1 . 1 . . . Engine 2 | 1 . 1 . . . Core . | . . . . . . Reactor . | . . . . . . Propulsion 2 | 2 . . . . . Treads . | . . . . . . Leg 2 | 2 . . . . . Wheel . | . . . . . . Hover . | . . . . . . Flight . | . . . . . . Utility 4 | . 2 1 . . 1 Device 3 | . 1 1 . . 1 Storage 1 | . 1 . . . . Processor . | . . . . . . Hackware . | . . . . . . Protection . | . . . . . . Artifact . | . . . . . . Weapon 14 | 3 4 2 4 . 1 Energy Gun 5 | 3 . 1 1 . . Energy Cannon 3 | . 2 . 1 . . Ballistic Gun 2 | . 1 . 1 . . Ballistic Cannon 3 | . 1 1 1 . . Launcher 1 | . . . . . 1 Special Weapon . | . . . . . . Impact Weapon . | . . . . . . Slashing Weapon . | . . . . . . Piercing Weapon . | . . . . . . Special Melee Weapon . | . . . . . . Unidentified Prototypes 1 | . . . . . 1 Parts Lost 8 | . . . . . 8 Power 1 | . . . . . 1 Propulsion 2 | . . . . . 2 Utility 2 | . . . . . 2 Weapon 3 | . . . . . 3 Highest Loss Streak 8 | . . . . . 8 To Critical Strikes . | . . . . . . Average Slot Usage (%) 98 | . 94 95 100 100 97 Engine 11 | . 14 11 11 11 10 Leg 23 | . 28 22 22 22 22 Device 19 | . 12 17 22 22 20 Storage 11 | . 11 11 11 11 11 Energy Gun 8 | . . 6 9 11 10 Energy Cannon 22 | . 24 22 21 22 22 Naked Turns . | . . . . . . Heaviest Build 31 | 7 23 31 31 31 31 Greatest Support 20 | 20 20 20 20 20 20 Greatest Overweight (x) 1 | . 1 1 1 1 1 Average Overweight (x) . | . . 1 1 1 1 Largest Inventory Capacity 10 | 5 10 10 10 10 10 Average Capacity 9 | 5 9 10 10 10 10 Most Carried 10 | 2 6 8 7 10 10 Average Carried 7 | . 5 6 7 8 9 Final Capacity 10 | 5 10 10 10 10 10 Final Carried 10 | 2 6 7 7 10 9 Class Distribution -------------------- 74% | Scavenger-Tank 22% | Mutant Dominant Class ---------------- Mutant | -10/Materials Scavenger-Tank | -9/Materials Scavenger-Tank | -9/Mines Scavenger-Tank | -7/Zion Scavenger-Tank | -7/Deep Caves Resources | -11 -10 -9 -9 -7 -7 ----------- Run | Scr Mat Mat Min Zio Dee Matter Collected 437 | 260 60 . 117 . . Remotely . | . . . . . . Salvage Created 328 | 34 134 60 61 . 39 Parts 20 | 2 12 4 . . 2 Haulers Intercepted 1 | . 1 . . . . Recyclers Shooed . | . . . . . . Parts Field Recycled . | . . . . . . Retrieved Matter . | . . . . . . Parts Self-Destructed . | . . . . . . Prevented . | . . . . . . Kills | -11 -10 -9 -9 -7 -7 ------- Run | Scr Mat Mat Min Zio Dee Combat Hostiles Destroyed 7 | 1 1 1 2 . 2 Guns 2 | 1 . . . . 1 Cannons 5 | . 1 1 2 . 1 Classes Destroyed 6 | 1 3 1 . . 1 Hauler 1 | . 1 . . . . Operator 1 | . 1 . . . . Watcher 1 | . 1 . . . . Grunt 4 | 1 1 . 2 . . Sentry 1 | . . 1 . . . Z-Technician 1 | . . . . . 1 Assembled 2 | . . . . . 2 Best Kill Streak 2 | 1 2 1 2 . 1 Combat Bots Only 2 | 1 1 1 2 . 1 Max Kills in Single Turn 1 | 1 1 1 1 . 1 Gunslinging . | . . . . . . Exploded . | . . . . . . Melee . | . . . . . . Uniques/NPCs Destroyed . | . . . . . . Combat | -11 -10 -9 -9 -7 -7 -------- Run | Scr Mat Mat Min Zio Dee Damage Taken 1171 | 23 8 34 169 . 937 Core 413 | 11 . 22 31 . 349 Absorbed by Shields 97 | . 3 13 59 . 22 Core Remaining (%) 95 | 95 95 . . . . Volleys Fired 34 | 2 5 2 12 1 12 Largest 3 | 2 2 3 3 3 3 Hottest 192 | 100 136 171 192 192 192 Shots Fired 72 | 4 10 6 21 3 28 Gun 18 | 4 . . 6 1 7 Cannon 54 | . 10 6 15 2 21 Launcher . | . . . . . . Special . | . . . . . . Kinetic 10 | . . 2 8 . . Thermal 62 | 4 10 4 13 3 28 Explosive . | . . . . . . Electromagnetic . | . . . . . . Robot Hit Streak 5 | 3 5 3 3 . 2 Robot Miss Streak 5 | 1 2 1 5 . 4 Penetration Max . | . . . . . . Secondary Targets . | . . . . . . Shots Hit Robots 29 | 3 6 3 9 . 8 Core Hits 13 | 2 3 1 3 . 4 Critical Kills 1 | . 1 . . . . Critical Parts Destroyed . | . . . . . . Critical Strikes 1 | . 1 . . . . Meltdown 1 | . 1 . . . . Melee Attacks . | . . . . . . Impact . | . . . . . . Slashing . | . . . . . . Piercing . | . . . . . . Sneak Attacks . | . . . . . . Combat Hostiles . | . . . . . . Follow-up Attacks . | . . . . . . Damage Inflicted 625 | 38 124 100 177 . 186 Guns 102 | 38 . . 43 . 21 Cannons 523 | . 124 100 134 . 165 Explosions . | . . . . . . Melee . | . . . . . . Ramming . | . . . . . . Kinetic 91 | . . 19 72 . . Thermal 534 | 38 124 81 105 . 186 Explosive . | . . . . . . Electromagnetic . | . . . . . . Impact . | . . . . . . Slashing . | . . . . . . Piercing . | . . . . . . Highest Corruption 1 | . 1 . . . . Average Corruption 1 | . 1 . . . . Corruption Purged . | . . . . . . Corruption Blocked . | . . . . . . Effects 2 | . 2 . . . . Message Errors 2 | . 2 . . . . Overload Shots . | . . . . . . Overflow Damage . | . . . . . . Projectiles . | . . . . . . Explosions . | . . . . . . Melee . | . . . . . . Knockbacks 2 | . . 1 1 . . Impact . | . . . . . . Kinetic 2 | . . 1 1 . . Secondary . | . . . . . . Self-Inflicted Damage . | . . . . . . Shots . | . . . . . . Rammed . | . . . . . . Targets Rammed . | . . . . . . Kicked . | . . . . . . Crushed . | . . . . . . Highest Temperature 398 | 84 229 187 398 96 398 Average Temperature 133 | 45 84 101 213 49 147 Received Heat Transfer 374 | 12 4 6 88 . 264 Siege Activations . | . . . . . . Robots Corrupted . | . . . . . . Combat Hostiles . | . . . . . . Parts Fried . | . . . . . . Impact Corruptions . | . . . . . . Robots Melted 1 | . 1 . . . . Combat Hostiles . | . . . . . . Parts Melted 2 | 1 . . 1 . . Heat Transferred 989 | 111 222 148 222 . 286 Parts Sabotaged . | . . . . . . Parts Stolen . | . . . . . . Parts Stripped . | . . . . . . Power Chain Reactions . | . . . . . . Missiles Intercepted . | . . . . . . Alert | -11 -10 -9 -9 -7 -7 ------- Run | Scr Mat Mat Min Zio Dee Peak Influence 75 | 20 69 65 75 . . Initial 25 | . 13 20 25 . . Average 46 | 3 44 48 59 . . Maximum Alert Level . | . . . . . . Low Security (%) 100 | 100 100 100 100 . . Level 1 . | . . . . . . Level 2 . | . . . . . . Level 3 . | . . . . . . Level 4 . | . . . . . . Level 5 . | . . . . . . High Security . | . . . . . . Max Security . | . . . . . . Squads Dispatched 1 | . 1 . . . . Investigation 1 | . 1 . . . . Extermination . | . . . . . . Reinforcement . | . . . . . . Assault . | . . . . . . Garrison . | . . . . . . Intercept . | . . . . . . Searches Triggered . | . . . . . . Construction Impeded . | . . . . . . Haulers Reinforced . | . . . . . . Active Scanning Responses . | . . . . . . Cargo Convoy Interrupts . | . . . . . . Stealth | -11 -10 -9 -9 -7 -7 --------- Run | Scr Mat Mat Min Zio Dee Distress Signals . | . . . . . . Communications Jammed . | . . . . . . Distress Signals . | . . . . . . Times Spotted 14 | 1 3 2 2 . 6 Peak Tracking Total 3 | 1 2 1 2 . 3 Tactical Retreats . | . . . . . . Traps | -11 -10 -9 -9 -7 -7 ------- Run | Scr Mat Mat Min Zio Dee Traps Triggered 2 | . 2 . . . . Indirectly . | . . . . . . Trap Hack Attempts . | . . . . . . Triggered . | . . . . . . Disarmed . | . . . . . . Reprogrammed . | . . . . . . Reused . | . . . . . . Traps Extracted . | . . . . . . Installed . | . . . . . . Triggered . | . . . . . . Machines | -11 -10 -9 -9 -7 -7 ---------- Run | Scr Mat Mat Min Zio Dee Machines Disabled . | . . . . . . Max in Single Turn . | . . . . . . Machines Sabotaged . | . . . . . . Garrisons Compromised . | . . . . . . Overloaded Fab Kills . | . . . . . . Hacking | -11 -10 -9 -9 -7 -7 --------- Run | Scr Mat Mat Min Zio Dee Machines Accessed 7 | . 7 . . . . Terminals 6 | . 6 . . . . Fabricators . | . . . . . . Repair Stations . | . . . . . . Recycling Units 1 | . 1 . . . . Scanalyzers . | . . . . . . Garrison Access . | . . . . . . Total Hacks 16 | . 16 . . . . Successful 8 | . 8 . . . . Failed 8 | . 8 . . . . Catastrophic 2 | . 2 . . . . Database Lockouts . | . . . . . . Manual 8 | . 1 . . 7 . Terminals 15 | . 15 . . . . Fabricators . | . . . . . . Repair Stations . | . . . . . . Recycling Units 1 | . 1 . . . . Scanalyzers . | . . . . . . Garrison Access . | . . . . . . Terminal Hacks 7 | . 7 . . . . Record 2 | . 2 . . . . Prototype ID Bank 1 | . 1 . . . . Terminal Index 1 | . 1 . . . . Alert Level 1 | . 1 . . . . Hauler Manifests 1 | . 1 . . . . Zone Layout 1 | . 1 . . . . Fabricator Hacks . | . . . . . . Repair Station Hacks . | . . . . . . Recycling Unit Hacks 1 | . 1 . . . . Report Inventory 1 | . 1 . . . . Scanalyzer . | . . . . . . Garrison Access Hacks . | . . . . . . Unauthorized Hacks . | . . . . . . Terminals . | . . . . . . Fabricators . | . . . . . . Repair Stations . | . . . . . . Recycling Units . | . . . . . . Scanalyzers . | . . . . . . Garrison Access . | . . . . . . Data Cores Recovered 1 | . 1 . . . . Used . | . . . . . . Hacking Detections 5 | . 5 . . . . Full Trace Events . | . . . . . . Feedback Events . | . . . . . . Feedback Blocked . | . . . . . . Robot Schematics Acquired 4 | . . . . 4 . Robots Built . | . . . . . . Authchips . | . . . . . . Time . | . . . . . . Total Robot Build Rating . | . . . . . . Part Schematics Acquired 14 | . . . . 14 . Parts Built . | . . . . . . Authchips . | . . . . . . Time . | . . . . . . Total Part Build Rating . | . . . . . . Parts Repaired . | . . . . . . Time . | . . . . . . Parts Recycled . | . . . . . . Recycled Matter . | . . . . . . Retrieved Matter . | . . . . . . Retrieved Components . | . . . . . . Parts Scanalyzed . | . . . . . . Part Schematics Acquired . | . . . . . . Parts Damaged . | . . . . . . Bothacking | -11 -10 -9 -9 -7 -7 ------------ Run | Scr Mat Mat Min Zio Dee Used RIF Installer . | . . . . . . Robots Hacked . | . . . . . . Non-combat . | . . . . . . Combat . | . . . . . . Robot Hacks Applied . | . . . . . . Relay Couplers Released . | . . . . . . Fabnet Peak Effective % . | . . . . . . Robots Rewired . | . . . . . . Allies Hacked . | . . . . . . Hacks Repelled . | . . . . . . Allies | -11 -10 -9 -9 -7 -7 -------- Run | Scr Mat Mat Min Zio Dee Total Allies 3 | . . . . 3 . Largest Group 3 | . . . . 3 3 Highest-Rated Group 76 | . . . . 76 76 Highest-Rated Ally 28 | . . . . 28 28 Total Orders . | . . . . . . Ally Attacks 7 | . . . . . 7 Total Damage 94 | . . . . . 94 Kills 1 | . . . . . 1 Allies Corrupted . | . . . . . . Allies Melted . | . . . . . . Intel | -11 -10 -9 -9 -7 -7 ------- Run | Scr Mat Mat Min Zio Dee Robot Analysis Total . | . . . . . . Derelict Logs Recovered 1 | . . . 1 . . Drone Launches . | . . . . . . Drone Recoveries . | . . . . . . Exploration | -11 -10 -9 -9 -7 -7 ------------- Run | Scr Mat Mat Min Zio Dee Turns Passed 3628 | 117 653 221 416 1978 243 Spaces Moved 1883 | 95 360 89 198 1036 105 Core 17 | 17 . . . . . Treads . | . . . . . . Legs 1866 | 78 360 89 198 1036 105 Wheels . | . . . . . . Hover . | . . . . . . Flight . | . . . . . . Fastest Speed 50 | 50 120 190 190 190 190 Average Speed 182 | 107 172 190 190 190 190 Slowest Speed 190 | 120 190 190 190 190 190 Overloaded Moves . | . . . . . . Propulsion Burnouts . | . . . . . . Robots Hopped . | . . . . . . Cave-ins Triggered . | . . . . . . Exploration Rate (%) 37 | 7 52 12 48 79 24 Regions Visited 5 Branch Regions 3 Pre-discovered Areas 1 | . . . . 1 . Known Exits Taken . | . . . . . . Unknown Exits Taken 5 | 1 1 1 1 1 . Scrap Searched 1 | . . . . 1 . Spaces Dug . | . . . . . . Terrain Destroyed . | . . . . . . Melee . | . . . . . . Projectile . | . . . . . . AOE . | . . . . . . Terrain Rammed . | . . . . . . Walls Destroyed . | . . . . . . Machines Disabled . | . . . . . . Actions | -11 -10 -9 -9 -7 -7 --------- Run | Scr Mat Mat Min Zio Dee Total 2009 | 103 382 136 218 1045 125 Wait 54 | . . 40 5 3 6 Move 1878 | 94 359 88 197 1035 105 Hop . | . . . . . . Pick Up 12 | 1 6 1 . 4 . Fast Attach 12 | 5 6 1 . . . Attach 3 | . . 2 . . 1 Detach 1 | . . 1 . . . Swap 7 | 1 . 1 4 . 1 Drop 8 | . 6 . . 2 . Fire 34 | 2 5 2 12 1 12 Melee . | . . . . . . Ram . | . . . . . . Kick . | . . . . . . Crush . | . . . . . . Escape Stasis . | . . . . . . Rewire . | . . . . . . Trap . | . . . . . . Miscellaneous . | . . . . . . Route ------- -11/Scrapyard -10/Materials (discovered 2 exits: [*Mat] / [*Min]) -9/Materials -9/Mines (discovered 2 exits: [*Mat] / *Zio) -7/Zion (discovered 2 exits: [*Dee] / [*Pro]) -7/Deep Caves History --------- Turn | Location | Event 2 | -11/Scrapyard | Met Revision 17 91 | -11/Scrapyard | Discovered new exit (range 8) 118 | -11/Scrapyard | Entered Materials 244 | -10/Materials | Discovered new exit (range 12) 304 | -10/Materials | Build established: Mutant 425 | -10/Materials | Discovered new exit (range 5) 771 | -10/Materials | Entered another Materials area 771 | -9/Materials | Evolved 2 slots: Utility x1, Weapon x1 933 | -9/Materials | Discovered new exit (range 16) 992 | -9/Materials | Entered Mines 1170 | -9/Mines | Learned location of 1 exit from Materials 1320 | -9/Mines | Discovered new exit (range 7) 1401 | -9/Mines | A Derelict revealed a hidden shortcut to a safe place 1408 | -9/Mines | Entered Zion 1430 | -7/Zion | Given A8's code to call for help 1474 | -7/Zion | Discovered new exit (range 16) 1621 | -7/Zion | Build established: Scavenger-Tank 1932 | -7/Zion | Learned location of Data Miner (-6) 2004 | -7/Zion | Given the Hacking Drone Bay 2008 | -7/Zion | Found Prototype Device 2239 | -7/Zion | Gained Derelict followers 2396 | -7/Zion | Found Prototype Device 2684 | -7/Zion | Acquired unknown access codes intercepted by a Zionite 2981 | -7/Zion | Found Prototype Device 3344 | -7/Zion | Opened final containment barrier to the Deep Caves 3373 | -7/Zion | Discovered new exit (range 5) 3377 | -7/Zion | Saw the warning signs outside the Deep Caves entrance 3386 | -7/Zion | Entered Deep Caves 3386 | -7/Deep Caves | Accompanied by 3 allies 3594 | -7/Deep Caves | Attacked by Z-Imprinter 3624 | -7/Deep Caves | Core integrity fell below 50% 3626 | -7/Deep Caves | Core integrity fell below 20% 3628 | -7/Deep Caves | Identified Hacking Drone Bay 3629 | -7/Deep Caves | Destroyed by Z-Imprinter with Zionite Laser-M Last Messages --------------- 03480_ as-23970 destroyed. 03564_ 6J-35Y(o) destroyed. 03577_ NEW_ZION: Z-Facility proximity alert. 03593_ BZ-A91(o) is busy at the terminal. Z-Imprinter: GET AWAY FROM HERE! I've worked too hard for our future just to have you ruin everything! 03596_ Z-Imprinter suffers critical hit (Burn). 03599_ XD-TT9(i) destroyed. 03606_ 4S-ILY(i) destroyed. 03606_ Shield Generator destroyed. 03612_ Z-Imprinter knocked back. 03612_ Heat Sink destroyed. 03613_ F9-HXF(b) destroyed. 03616_ Imp. Ion Engine destroyed. 03619_ Imp. Grenade Launcher destroyed. 03622_ Aluminum Leg destroyed. 03622_ Particle Cannon destroyed. 03623_ Aluminum Leg destroyed. 03627_ Particle Cannon destroyed. 03628_ Identified Hacking Drone Bay. Map ----- +----------------------------------------------------+ | ????????????????????? ????#### ##??# | | ????????????????????? ????# ##?# | | ???????????????????? #????# " ### | | ???????????????????? #????# """ | | ???????????????????? ##???# "" ### | | ??????????????????? ##### #?? | | ??????????????????? % ##?? | | ?????????????????? ##??? | | ?????????????????? ###???? | | ?????????????????? ######?????# | | ?????????????????? ###??????????# | | ?????????????????? ##????????????# | | ?????????????????? #?????????????# | | ???????????????? ##????????????# | | ?????????????? #????????????# | | ????????????? #????????????# | | ???????????? z #????????????# | | ?????????? = ##????????????# | | ?????????? *%zI ##????????????# | | ?????????"""o = / #???????###### | | ????????? %== #???????# | | ??????????" !% ##???? | | ??????????"" ##?????# ### | | ?????????"""" ##?????# ????? | | ????????""""" ##????? ??????? | | ????????""""" @ #?????????#### | | ?????? """"" #????? | | ????" """ ##????? | | ????" * #?????? ### | | ???????"""""%! ##????????????? | | ????"""""" #????????????? | | ?? ##???????????? | | ?? #???????????? | | ?? #???????????? | | ?? #??????????? | | ??? #??????????? | | ??? #??????????? | | ???? ##### #??????????? | | ???? ###????### #### #??????????? | | ???? #?????????######??## ##??????????? | | ????? ####???????????????????## ###???????????? | | ?????##??????????????????????????###?????????????? | | ?????????????????????????????????????????????????? | | | | | | | | | | | | | | | +----------------------------------------------------+ Best States ------------- Heat Dissipation 38 Energy Generation 12 Energy Capacity 265 Matter Stores 300 Matter Capacity 300 Sight Range 16 Terrain Scan Density 10 Evasion (%) 55 Item Schematics ----------------- Drone Bay | -7/Zion | Archive Imp. Melee Analysis Suite | -7/Zion | Archive Powered Hammer | -7/Zion | Archive Spk. Medium Treads | -7/Zion | Archive Neutrino Core | -7/Zion | Archive Mak. Terrain Scan Processor | -7/Zion | Archive Power Sword | -7/Zion | Archive Hvy. Riot Gun | -7/Zion | Archive Mak. Cloaking Device | -7/Zion | Archive Mak. Spear | -7/Zion | Archive Hvy. Plasma Cannon | -7/Zion | Archive 0b10 Decoder Chip [Generic] | -7/Zion | Archive Kinecellerator | -7/Zion | Archive Mass Driver | -7/Zion | Archive Robot Schematics ------------------ L-31 Rogue | -7/Zion | Archive W-25 Informer | -7/Zion | Archive R-06 Scavenger | -7/Zion | Archive H-88 Terminator | -7/Zion | Archive Fabricated ------------ Nothing Alien Tech Used ----------------- None Achievements -------------- None Challenges ------------ None Game ------ Seed CryofiberTerrabombCompressor Manual? 0 Play Time 00:37:59 Cumulative 20.6 hours Start 2022.03.20 @ 10:33:27 End 2022.03.20 @ 11:13:45 Sessions 1 Manual Loads 0 Difficulty Rogue Special Mode None Game No. 84 Rogue 84 Adventurer 0 Explorer 0 Win Type - Total 0 Types 0/0/0/0/0/0/0/0/0 Lore% 11 Gallery% 21 Achievement% 18 Wizard Run 0 Options --------- ASCII 0 Keyboard 0 Movement Arrows Keybinds 0 Fullscreen 1 Font 18/SmallcapsGlow Map View 76x50 Tactical HUD 1 Map Filters NONE Filters NONE Steam 1 RUN: c644507e-12e8-45a5-a768-40353ccafc17